{"text_format":"3","workbook":"xlsx","n_sheets":26,"sheets":["Commencer","1","2","3","4","5","6","7","8","9","10","11","12","13","14","15","16","17","18","19","20","21","22","23","24","En savoir plus"],"not_rendered":{"images":25,"defined_names":22,"pivot_tables":19},"read":"whole","date_system":"1900"}

{"sheet":"Commencer","index":0,"n_rows":5,"n_cols":1,"rows_kept":5}
["Bienvenue\nInstructions pour les lecteurs d’écran : Tirez un meilleur parti des tableaux croisés dynamiques. Un tableau croisé dynamique simple fournit une synthèse de vos données, mais il peut vous arriver de devoir détailler des réponses à des questions spécifiques. C’est là que l’ajout de champs de colonne et de ligne peut vous aider. \nLes instructions vous indiquent à quelles cellules vous devez accéder pour utiliser une fonctionnalité ou lire la suite.\nPour commencer, appuyez sur CTRL+PAGE SUIVANTE."]
["Tirez un meilleur parti des tableaux croisés dynamiques"]
["Un tableau croisé dynamique simple fournit un résumé général de vos données,\nmais il peut arriver que vous ayez besoin de réponses détaillées à des questions spécifiques.C’est là que l’ajout de champs de colonne et de ligne peut vous aider."]
["BON À SAVOIR\nAvez-vous suivi le premier didacticiel ? Si ce n’est pas le cas, accédez à Fichier > Nouveau, puis trouvez l’option Créez votre premier tableau croisé dynamique."]
["Revenez au début en appuyant sur CTRL+ORIGINE. Pour commencer la visite, appuyez sur CTRL+PAGE SUIVANTE."]

{"sheet":"1","index":1,"n_rows":16,"n_cols":9,"rows_kept":16}
["Dans le premier didacticiel, nous avons présenté le concept de tableau croisé dynamique. Nous avons également expliqué comment un champ de ligne peut être utilisé comme une condition pour morceler un champ de valeur.   "]
["Les cellules H10 à I14 contiennent un tableau croisé dynamique qui synthétise les données des cellules B8 à E16. Le tableau croisé dynamique comprend deux colonnes : Acheteur et Somme des montants. La colonne Acheteur contient les valeurs Papa, Maman, Marie et Total général tandis que la colonne Somme des montants contient les valeurs 220 €, 270 €, 810 € et 1 300 €. La colonne Acheteur est constituée d’un champ de ligne, et la colonne Somme des montants d’un champ Valeur."]
["Pour poursuivre ce didacticiel, appuyez sur CTRL+PAGE SUIVANTE. Pour revenir à la feuille précédente, appuyez sur CTRL+PAGE PRÉCÉDENTE."]
[]
[]
[]
[]
[null,"Date","Acheteur","Type","Montant"]
["Cet exemple montre comment le champ de ligne...","2017-01-01","Papa","Cadeaux",{"v":95,"d":"95 €"}]
["...morcèle le champ de valeur.","2017-01-15","Maman","Nourriture",{"v":325,"d":"325 €"},null,null,"Acheteur","Somme des montants"]
[null,"2017-01-17","Maman","Tickets",{"v":250,"d":"250 €"},null,null,"Papa",{"v":220,"d":"220 €"}]
[null,"2017-01-21","Papa","Nourriture",{"v":125,"d":"125 €"},null,null,"Marie",{"v":270,"d":"270 €"}]
[null,"2017-02-02","Maman","Nourriture",{"v":235,"d":"235 €"},null,null,"Maman",{"v":810,"d":"810 €"}]
[null,"2017-02-20","Marie","Musique",{"v":20,"d":"20 €"},null,null,"Total général",{"v":1300,"d":"1,300 €"}]
[null,"2017-02-25","Marie","Tickets",{"v":125,"d":"125 €"}]
[null,"2017-02-25","Marie","Sports",{"v":125,"d":"125 €"}]

{"sheet":"2","index":2,"n_rows":108,"n_cols":7,"rows_kept":108}
["Mais lorsque vous regardez un tableau croisé dynamique pour la première fois, il se peut que vous trouviez que vous avez besoin qu’il vous donne plus de réponses."]
["Lorsque vous regardez un tableau croisé dynamique pour la première fois, il se peut que vous vous posiez des questions telles que « Quand ont eu lieu ces achats ? », « À quoi chaque personne a-t-elle consacré de l’argent ? », « Qu’est-ce que Maman a acheté de si cher ? »."]
["Dans cet exemple, les cellules F11 à G15 affichent le même tableau croisé dynamique de deux colonnes qu’avant. La colonne Acheteur est un champ de ligne contenant les valeurs Papa, Maman, Marie et Total général, tandis que la colonne Somme des montants est le champ Valeur contenant les valeurs 220 €, 270 €, 810 € et 1,300 €. "]
["Pour poursuivre ce didacticiel, appuyez sur CTRL+PAGE SUIVANTE. Pour revenir à la feuille précédente, appuyez sur Ctrl+Page précédente."]
[]
[]
[]
[]
[]
[]
[{"$nulls":5},"Acheteur","Somme des montants"]
[{"$nulls":5},"Papa",{"v":220,"d":"220 €"}]
[{"$nulls":5},"Marie",{"v":270,"d":"270 €"}]
[{"$nulls":5},"Maman",{"v":810,"d":"810 €"}]
[{"$nulls":5},"Total général",{"v":1300,"d":"1,300 €"}]
{"$rows_empty":84}
[null,"Date","Acheteur","Type","Montant"]
[null,"2017-01-01","Papa","Cadeaux",{"v":95,"d":"95 €"}]
[null,"2017-01-15","Maman","Nourriture",{"v":325,"d":"325 €"}]
[null,"2017-01-17","Maman","Tickets",{"v":250,"d":"250 €"}]
[null,"2017-01-21","Papa","Nourriture",{"v":125,"d":"125 €"}]
[null,"2017-02-02","Maman","Nourriture",{"v":235,"d":"235 €"}]
[null,"2017-02-20","Marie","Musique",{"v":20,"d":"20 €"}]
[null,"2017-02-25","Marie","Tickets",{"v":125,"d":"125 €"}]
[null,"2017-02-25","Marie","Sports",{"v":125,"d":"125 €"}]

{"sheet":"3","index":3,"n_rows":108,"n_cols":7,"rows_kept":108}
["Ce sont toutes de bonnes questions mais, pour le moment, concentrons-nous sur l’une d’elles."]
["À quoi chaque personne a-t-elle consacré de l’argent ?"]
["Pour référence, les cellules F11 à G15 affichent le même tableau croisé dynamique de deux colonnes qu’avant. La colonne Acheteur est un champ de ligne contenant les valeurs Papa, Maman, Marie et Total général, tandis que la colonne Somme des montants est le champ Valeur contenant les valeurs 220 €, 270 €, 810 € et 1,300 €. "]
["Pour poursuivre ce didacticiel, appuyez sur CTRL+PAGE SUIVANTE. Pour revenir à la feuille précédente, appuyez sur Ctrl+Page précédente."]
[]
[]
[]
[]
[]
[]
[{"$nulls":5},"Acheteur","Somme des montants"]
[{"$nulls":5},"Papa",{"v":220,"d":"220 €"}]
[{"$nulls":5},"Marie",{"v":270,"d":"270 €"}]
[{"$nulls":5},"Maman",{"v":810,"d":"810 €"}]
[{"$nulls":5},"Total général",{"v":1300,"d":"1,300 €"}]
{"$rows_empty":84}
[null,"Date","Acheteur","Type","Montant"]
[null,"2017-01-01","Papa","Cadeaux",{"v":95,"d":"95 €"}]
[null,"2017-01-15","Maman","Nourriture",{"v":325,"d":"325 €"}]
[null,"2017-01-17","Maman","Tickets",{"v":250,"d":"250 €"}]
[null,"2017-01-21","Papa","Nourriture",{"v":125,"d":"125 €"}]
[null,"2017-02-02","Maman","Nourriture",{"v":235,"d":"235 €"}]
[null,"2017-02-20","Marie","Musique",{"v":20,"d":"20 €"}]
[null,"2017-02-25","Marie","Tickets",{"v":125,"d":"125 €"}]
[null,"2017-02-25","Marie","Sports",{"v":125,"d":"125 €"}]

{"sheet":"4","index":4,"n_rows":108,"n_cols":9,"rows_kept":108}
["La dernière question que nous avons posée était « À quoi chaque personne a-t-elle consacré de l’argent ? »"]
["Nous avons répondu à cette question en ajoutant un champ de colonne pour Type. Par conséquent, le tableau croisé dynamique comporte désormais cinq nouvelles colonnes montrant le type d’achat effectué par chaque personne. "]
["Notre nouveau tableau croisé dynamique s’étend désormais de la cellule C10 à la cellule I15, et comporte des colonnes pour Acheteur, Nourriture, Musique, Sports, Tickets, Cadeaux et Total général. Les colonnes Acheteur et Total général sont les mêmes qu’avant, et les nouvelles colonnes de détail sont situées entre elles."]
["Pour poursuivre ce didacticiel, appuyez sur CTRL+PAGE SUIVANTE. Pour revenir à la feuille précédente, appuyez sur Ctrl+Page précédente."]
[]
[]
[]
[]
[]
[null,null,"Somme des montants","Type"]
[null,null,"Acheteur","Nourriture","Musique","Sports","Tickets","Cadeaux","Total général"]
[null,null,"Papa",{"v":125,"d":"125 €"},{"$nulls":3},{"v":95,"d":"95 €"},{"v":220,"d":"220 €"}]
[null,null,"Marie",null,{"v":20,"d":"20 €"},{"v":125,"d":"125 €"},{"v":125,"d":"125 €"},null,{"v":270,"d":"270 €"}]
[null,null,"Maman",{"v":560,"d":"560 €"},null,null,{"v":250,"d":"250 €"},null,{"v":810,"d":"810 €"}]
[null,null,"Total général",{"v":685,"d":"685 €"},{"v":20,"d":"20 €"},{"v":125,"d":"125 €"},{"v":375,"d":"375 €"},{"v":95,"d":"95 €"},{"v":1300,"d":"1,300 €"}]
{"$rows_empty":84}
[null,"Date","Acheteur","Type","Montant"]
[null,"2017-01-01","Papa","Cadeaux",{"v":95,"d":"95 €"}]
[null,"2017-01-15","Maman","Nourriture",{"v":325,"d":"325 €"}]
[null,"2017-01-17","Maman","Tickets",{"v":250,"d":"250 €"}]
[null,"2017-01-21","Papa","Nourriture",{"v":125,"d":"125 €"}]
[null,"2017-02-02","Maman","Nourriture",{"v":235,"d":"235 €"}]
[null,"2017-02-20","Marie","Musique",{"v":20,"d":"20 €"}]
[null,"2017-02-25","Marie","Tickets",{"v":125,"d":"125 €"}]
[null,"2017-02-25","Marie","Sports",{"v":125,"d":"125 €"}]

{"sheet":"5","index":5,"n_rows":108,"n_cols":9,"rows_kept":108}
["Si le tableau croisé dynamique est difficile à comprendre, essayez de procéder comme suit : Lisez à partir de la gauche, puis de haut en bas. Dans l’exemple ci-dessous, Papa figure dans la cellule C12, Nourriture pour 125 € dans la cellule D12, Cadeaux pour 95 € dans la cellule E12, et Total général pour 220 € dans la cellule I12. Les lignes 13 et 14 montrent les détails pour Marie et Maman, et la ligne 15 montre le Total général."]
["Pour poursuivre ce didacticiel, appuyez sur CTRL+PAGE SUIVANTE. Pour revenir à la feuille précédente, appuyez sur Ctrl+Page précédente."]
{"$rows_empty":7}
[null,null,"Somme des montants","Type"]
[null,null,"Acheteur","Nourriture","Cadeaux","Musique","Sports","Tickets","Total général"]
[null,null,"Papa",{"v":125,"d":"125 €"},{"v":95,"d":"95 €"},{"$nulls":3},{"v":220,"d":"220 €"}]
[null,null,"Marie",null,null,{"v":20,"d":"20 €"},{"v":125,"d":"125 €"},{"v":125,"d":"125 €"},{"v":270,"d":"270 €"}]
[null,null,"Maman",{"v":560,"d":"560 €"},{"$nulls":3},{"v":250,"d":"250 €"},{"v":810,"d":"810 €"}]
[null,null,"Total général",{"v":685,"d":"685 €"},{"v":95,"d":"95 €"},{"v":20,"d":"20 €"},{"v":125,"d":"125 €"},{"v":375,"d":"375 €"},{"v":1300,"d":"1,300 €"}]
{"$rows_empty":84}
[null,"Date","Acheteur","Type","Montant"]
[null,"2017-01-01","Papa","Cadeaux",{"v":95,"d":"95 €"}]
[null,"2017-01-15","Maman","Nourriture",{"v":325,"d":"325 €"}]
[null,"2017-01-17","Maman","Tickets",{"v":250,"d":"250 €"}]
[null,"2017-01-21","Papa","Nourriture",{"v":125,"d":"125 €"}]
[null,"2017-02-02","Maman","Nourriture",{"v":235,"d":"235 €"}]
[null,"2017-02-20","Marie","Musique",{"v":20,"d":"20 €"}]
[null,"2017-02-25","Marie","Tickets",{"v":125,"d":"125 €"}]
[null,"2017-02-25","Marie","Sports",{"v":125,"d":"125 €"}]

{"sheet":"6","index":6,"n_rows":3,"n_cols":1,"rows_kept":3}
["Ne faites rien pour le moment. Vous aurez l’occasion de créer votre propre tableau croisé dynamique un peu plus loin dans ce didacticiel. Vous allez commencer par créer un détail dans le champ Colonnes. Pour ce faire, placez le champ Type dans la zone de champ Colonnes."]
["L’illustration Liste de champs de tableau croisé dynamique montre un curseur en forme de flèche faisant glisser le champ Type vers la zone Colonnes."]
["Pour poursuivre ce didacticiel, appuyez sur CTRL+PAGE SUIVANTE. Pour revenir à la feuille précédente, appuyez sur CTRL+PAGE PRÉCÉDENTE."]

{"sheet":"7","index":7,"n_rows":108,"n_cols":8,"rows_kept":108}
["1. La zone de tableau croisé dynamique pour cet exemple s’étend des cellules B13 à C17. Accédez à l’une de ces cellules."]
["2. Appuyez sur ALT+JN, L2 pour ouvrir la liste Champs de tableau croisé dynamique. Par défaut, le focus est placé sur la zone de texte Rechercher : Modifier la « Rechercher » "]
["3. Appuyez sur les touches de direction pour sélectionner le champ Type. Une fois le champ sélectionné, appuyez sur ESPACE pour ajouter le champ Type à la zone Lignes. "]
["4. Appuyez sur Tab pour sélectionner le champ type. Appuyez sur entrée, puis appuyez sur les touches de direction pour sélectionner déplacer dans la zone étiquettes de colonnes, puis appuyez sur entrée pour ajouter le champ type à la zone de colonnes. Appuyez sur ALT+JN+L2 pour quitter le volet Champs de tableau croisé dynamique."]
["Pour poursuivre ce didacticiel, appuyez sur CTRL+PAGE SUIVANTE. Pour revenir à la feuille précédente, appuyez sur CTRL+PAGE PRÉCÉDENTE."]
[]
[]
[]
[{"$nulls":7},{"$f":"IF(AND($B$14=\"Acheteur\",$H$17=810),\"Bravo. Vous avez placé votre premier \",\" \")","v":" "}]
[{"$nulls":7},{"$f":"IF(AND($B$14=\"Acheteur\",$H$17=810),\"champ de colonne. Cliquez sur \",\" \")","v":" "}]
[{"$nulls":7},{"$f":"IF(AND($B$14=\"Acheteur\",$H$17=810),\"Suivant pour continuer...\",\" \")","v":" "}]
[]
[null,"Acheteur","Somme des montants"]
[null,"Papa",{"v":220,"d":"220 €"}]
[null,"Marie",{"v":270,"d":"270 €"}]
[null,"Maman",{"v":810,"d":"810 €"}]
[null,"Grand Total",{"v":1300,"d":"1,300 €"}]
{"$rows_empty":82}
[null,"Date","Acheteur","Type","Montant"]
[null,"2017-01-01","Papa","Cadeaux",{"v":95,"d":"95 €"}]
[null,"2017-01-15","Maman","Nourriture",{"v":325,"d":"325 €"}]
[null,"2017-01-17","Maman","Tickets",{"v":250,"d":"250 €"}]
[null,"2017-01-21","Papa","Nourriture",{"v":125,"d":"125 €"}]
[null,"2017-02-02","Maman","Nourriture",{"v":235,"d":"235 €"}]
[null,"2017-02-20","Marie","Musique",{"v":20,"d":"20 €"}]
[null,"2017-02-25","Marie","Tickets",{"v":125,"d":"125 €"}]
[null,"2017-02-25","Marie","Sports",{"v":125,"d":"125 €"}]

{"sheet":"8","index":8,"n_rows":108,"n_cols":9,"rows_kept":108}
["Examinons le tableau croisé dynamique que vous avez créé, avec cette fois quelques couleurs spéciales que nous avons ajoutées pour différencier les champs de ligne, de colonne et de valeur."]
["Le champ de ligne qui s’étend sur les cellules C10 à C13 est ombré en jaune."]
["Le champ de colonne qui s’étend sur les cellules D9 à H10 est ombré d’orange."]
["Le champ de valeur qui s’étend sur les cellules D11 à H13 est ombré de bleu."]
["Pour poursuivre ce didacticiel, appuyez sur CTRL+PAGE SUIVANTE. Pour revenir à la feuille précédente, appuyez sur Ctrl+Page précédente."]
[]
[]
[]
[null,null,"Somme des montants","Type"]
[null,null,"Acheteur","Nourriture","Cadeaux","Musique","Sports","Tickets","Total général"]
[null,null,"Papa",{"v":125,"d":"125 €"},{"v":95,"d":"95 €"},{"$nulls":3},{"v":220,"d":"220 €"}]
[null,null,"Marie",null,null,{"v":20,"d":"20 €"},{"v":125,"d":"125 €"},{"v":125,"d":"125 €"},{"v":270,"d":"270 €"}]
[null,null,"Maman",{"v":560,"d":"560 €"},{"$nulls":3},{"v":250,"d":"250 €"},{"v":810,"d":"810 €"}]
[null,null,"Total général",{"v":685,"d":"685 €"},{"v":95,"d":"95 €"},{"v":20,"d":"20 €"},{"v":125,"d":"125 €"},{"v":375,"d":"375 €"},{"v":1300,"d":"1,300 €"}]
{"$rows_empty":85}
[null,"Date","Acheteur","Type","Montant"]
[null,"2017-01-01","Papa","Cadeaux",{"v":95,"d":"95 €"}]
[null,"2017-01-15","Maman","Nourriture",{"v":325,"d":"325 €"}]
[null,"2017-01-17","Maman","Tickets",{"v":250,"d":"250 €"}]
[null,"2017-01-21","Papa","Nourriture",{"v":125,"d":"125 €"}]
[null,"2017-02-02","Maman","Nourriture",{"v":235,"d":"235 €"}]
[null,"2017-02-20","Marie","Musique",{"v":20,"d":"20 €"}]
[null,"2017-02-25","Marie","Tickets",{"v":125,"d":"125 €"}]
[null,"2017-02-25","Marie","Sports",{"v":125,"d":"125 €"}]

{"sheet":"9","index":9,"n_rows":3,"n_cols":1,"rows_kept":3}
["Voici une autre façon de concevoir cela : Le champ de ligne est sur la gauche et le champ de colonne en haut. Chacune d’eux fournit une condition au champ de valeur qui les additionne."]
["Une image conceptuelle affiche une zone rectangulaire de 4 sections, avec le champ de ligne en bas à gauche en jaune, le champ de colonne en haut à droite en orange, et le champ de valeur en bas à droite en bleu."]
["Pour poursuivre ce didacticiel, appuyez sur CTRL+PAGE SUIVANTE. Pour revenir à la feuille précédente, appuyez sur CTRL+PAGE PRÉCÉDENTE."]

{"sheet":"10","index":10,"n_rows":3,"n_cols":1,"rows_kept":3}
["Pensez-y de cette façon lors de l’utilisation de la liste des champs. Le champ de ligne est sur la gauche et le champ de colonne en haut. Chacune d’eux fournit une condition au champ de valeur qui les additionne."]
["Une image conceptuelle affiche la liste de Champs de tableau croisé dynamique, avec le champ de ligne en bas à gauche en jaune, le champ de colonne en haut à droite en orange, et le champ de valeur en bas à droite en bleu."]
["Pour poursuivre ce didacticiel, appuyez sur CTRL+PAGE SUIVANTE. Pour revenir à la feuille précédente, appuyez sur CTRL+PAGE PRÉCÉDENTE."]

{"sheet":"11","index":11,"n_rows":121,"n_cols":24,"rows_kept":121}
["Un point à retenir : Si un champ de colonne ajoute un grand nombre de colonnes à un tableau croisé dynamique, il élargit considérablement celui-ci. "]
["Dans cet exemple, le tableau croisé dynamique s’étend désormais des cellules C10 à X15, puisque le champ de colonne a ajouté 20 nouvelles colonnes. Cela fait beaucoup de colonnes ! Cela obligera les personnes à faire défiler beaucoup..."]
["Pour poursuivre ce didacticiel, appuyez sur CTRL+PAGE SUIVANTE. Pour revenir à la feuille précédente, appuyez sur Ctrl+Page précédente."]
[]
[]
[]
[]
[]
[]
[null,null,"Somme des montants","Type"]
[null,null,"Acheteur","Livres","Nourriture","Carburant","Musique","Sports","Tickets","Restauration","Électricité","Frais médicaux","Frais dentaires","Taxes","Assurance automobile","Parking","Équipements électroniques","Billets d’avion","Vêtements","Leçons de musique","Cotisations au club","Assurance maladie","Assurance habitation","Total général"]
[null,null,"Papa",{"$nulls":4},{"v":1000,"d":"1,000 €"},{"$nulls":5},{"v":500,"d":"500 €"},{"$nulls":3},{"v":500,"d":"500 €"},{"$nulls":5},{"v":2000,"d":"2,000 €"}]
[null,null,"Marie",{"v":250,"d":"250 €"},null,null,{"v":20,"d":"20 €"},null,{"v":125,"d":"125 €"},{"v":20,"d":"20 €"},{"$nulls":5},{"v":20,"d":"20 €"},{"v":125,"d":"125 €"},null,{"v":125,"d":"125 €"},{"v":250,"d":"250 €"},{"$nulls":3},{"v":935,"d":"935 €"}]
[null,null,"Maman",null,{"v":470,"d":"470 €"},{"v":74,"d":"74 €"},{"$nulls":4},{"v":70,"d":"70 €"},{"v":74,"d":"74 €"},{"v":235,"d":"235 €"},null,{"v":74,"d":"74 €"},{"$nulls":5},{"v":125,"d":"125 €"},{"v":70,"d":"70 €"},{"v":235,"d":"235 €"},{"v":1427,"d":"1,427 €"}]
[null,null,"Total général",{"v":250,"d":"250 €"},{"v":470,"d":"470 €"},{"v":74,"d":"74 €"},{"v":20,"d":"20 €"},{"v":1000,"d":"1,000 €"},{"v":125,"d":"125 €"},{"v":20,"d":"20 €"},{"v":70,"d":"70 €"},{"v":74,"d":"74 €"},{"v":235,"d":"235 €"},{"v":500,"d":"500 €"},{"v":74,"d":"74 €"},{"v":20,"d":"20 €"},{"v":125,"d":"125 €"},{"v":500,"d":"500 €"},{"v":125,"d":"125 €"},{"v":250,"d":"250 €"},{"v":125,"d":"125 €"},{"v":70,"d":"70 €"},{"v":235,"d":"235 €"},{"v":4362,"d":"4,362 €"}]
{"$rows_empty":84}
[null,"Date","Acheteur","Type","Montant"]
[null,"2017-01-17","Papa","Sports",{"v":1000,"d":"1,000 €"}]
[null,"2017-01-17","Papa","Billets d’avion",{"v":500,"d":"500 €"}]
[null,"2017-01-17","Papa","Taxes",{"v":500,"d":"500 €"}]
[null,"2017-02-20","Marie","Musique",{"v":20,"d":"20 €"}]
[null,"2017-02-25","Marie","Tickets",{"v":125,"d":"125 €"}]
[null,"2017-01-21","Marie","Livres",{"v":250,"d":"250 €"}]
[null,"2017-02-20","Marie","Restauration",{"v":20,"d":"20 €"}]
[null,"2017-02-25","Marie","Vêtements",{"v":125,"d":"125 €"}]
[null,"2017-01-21","Marie","Leçons de musique",{"v":250,"d":"250 €"}]
[null,"2017-02-20","Marie","Parking",{"v":20,"d":"20 €"}]
[null,"2017-02-25","Marie","Équipements électroniques",{"v":125,"d":"125 €"}]
[null,"2017-01-01","Maman","Carburant",{"v":74,"d":"74 €"}]
[null,"2017-01-15","Maman","Nourriture",{"v":235,"d":"235 €"}]
[null,"2017-01-21","Maman","Cotisations au club",{"v":125,"d":"125 €"}]
[null,"2017-02-02","Maman","Nourriture",{"v":235,"d":"235 €"}]
[null,"2017-01-01","Maman","Frais médicaux",{"v":74,"d":"74 €"}]
[null,"2017-01-15","Maman","Électricité",{"v":70,"d":"70 €"}]
[null,"2017-02-02","Maman","Frais dentaires",{"v":235,"d":"235 €"}]
[null,"2017-01-01","Maman","Assurance automobile",{"v":74,"d":"74 €"}]
[null,"2017-01-15","Maman","Assurance maladie",{"v":70,"d":"70 €"}]
[null,"2017-02-02","Maman","Assurance habitation",{"v":235,"d":"235 €"}]

{"sheet":"12","index":12,"n_rows":119,"n_cols":5,"rows_kept":119}
["Il existe une alternative aux tableaux croisés dynamiques très larges. Vous pouvez utiliser un deuxième champ de ligne à la place. Un deuxième champ de ligne s’affiche en retrait sous le premier champ de ligne."]
["Dans cet exemple, il y a un tableau croisé dynamique s’étendant des cellules D8 à E32. Il contient Papa, Marie et Maman en tant que premiers champs de ligne dans la colonne D. Les types de dépenses sont situés dessous en tant que deuxièmes champs de ligne avec des éléments tels que Sports, Billets d’avion, Restauration, etc.."]
["BON À SAVOIR\nUn deuxième champ de ligne produit un tableau croisé dynamique orienté verticalement plutôt qu’horizontalement. Certains personnes trouvent qu’un tableau croisé dynamique vertical est plus lisible, car il ne nécessite pas autant de défilement latéral."]
["PARLER LE LANGAGE D’EXCEL\nCertaines personnes appellent un deuxième champ de ligne « champ de ligne secondaire »."]
["Pour poursuivre ce didacticiel, appuyez sur CTRL+PAGE SUIVANTE. Pour revenir à la feuille précédente, appuyez sur Ctrl+Page précédente."]
[]
[]
[{"$nulls":3},"Étiquettes de lignes","Somme des montants"]
[{"$nulls":3},"Papa",{"v":2000,"d":"2,000 €"}]
[{"$nulls":3},"Sports",{"v":1000,"d":"1,000 €"}]
[{"$nulls":3},"Taxes",{"v":500,"d":"500 €"}]
[{"$nulls":3},"Billets d’avion",{"v":500,"d":"500 €"}]
[{"$nulls":3},"Marie",{"v":935,"d":"935 €"}]
[{"$nulls":3},"Livres",{"v":250,"d":"250 €"}]
[{"$nulls":3},"Musique",{"v":20,"d":"20 €"}]
[{"$nulls":3},"Tickets",{"v":125,"d":"125 €"}]
[{"$nulls":3},"Restauration",{"v":20,"d":"20 €"}]
[{"$nulls":3},"Parking",{"v":20,"d":"20 €"}]
[{"$nulls":3},"Équipements électroniques",{"v":125,"d":"125 €"}]
[{"$nulls":3},"Vêtements",{"v":125,"d":"125 €"}]
[{"$nulls":3},"Leçons de musique",{"v":250,"d":"250 €"}]
[{"$nulls":3},"Maman",{"v":1427,"d":"1,427 €"}]
[{"$nulls":3},"Nourriture",{"v":470,"d":"470 €"}]
[{"$nulls":3},"Carburant",{"v":74,"d":"74 €"}]
[{"$nulls":3},"Électricité",{"v":70,"d":"70 €"}]
[{"$nulls":3},"Frais médicaux",{"v":74,"d":"74 €"}]
[{"$nulls":3},"Frais dentaires",{"v":235,"d":"235 €"}]
[{"$nulls":3},"Assurance automobile",{"v":74,"d":"74 €"}]
[{"$nulls":3},"Cotisations au club",{"v":125,"d":"125 €"}]
[{"$nulls":3},"Assurance maladie",{"v":70,"d":"70 €"}]
[{"$nulls":3},"Assurance habitation",{"v":235,"d":"235 €"}]
[{"$nulls":3},"Total général",{"v":4362,"d":"4,362 €"}]
{"$rows_empty":65}
[null,"Date","Acheteur","Type","Montant"]
[null,"2017-01-17","Papa","Sports",{"v":1000,"d":"1,000 €"}]
[null,"2017-01-17","Papa","Billets d’avion",{"v":500,"d":"500 €"}]
[null,"2017-01-17","Papa","Taxes",{"v":500,"d":"500 €"}]
[null,"2017-02-20","Marie","Musique",{"v":20,"d":"20 €"}]
[null,"2017-02-25","Marie","Tickets",{"v":125,"d":"125 €"}]
[null,"2017-01-21","Marie","Livres",{"v":250,"d":"250 €"}]
[null,"2017-02-20","Marie","Restauration",{"v":20,"d":"20 €"}]
[null,"2017-02-25","Marie","Vêtements",{"v":125,"d":"125 €"}]
[null,"2017-01-21","Marie","Leçons de musique",{"v":250,"d":"250 €"}]
[null,"2017-02-20","Marie","Parking",{"v":20,"d":"20 €"}]
[null,"2017-02-25","Marie","Équipements électroniques",{"v":125,"d":"125 €"}]
[null,"2017-01-01","Maman","Carburant",{"v":74,"d":"74 €"}]
[null,"2017-01-15","Maman","Nourriture",{"v":235,"d":"235 €"}]
[null,"2017-01-21","Maman","Cotisations au club",{"v":125,"d":"125 €"}]
[null,"2017-02-02","Maman","Nourriture",{"v":235,"d":"235 €"}]
[null,"2017-01-01","Maman","Frais médicaux",{"v":74,"d":"74 €"}]
[null,"2017-01-15","Maman","Électricité",{"v":70,"d":"70 €"}]
[null,"2017-02-02","Maman","Frais dentaires",{"v":235,"d":"235 €"}]
[null,"2017-01-01","Maman","Assurance automobile",{"v":74,"d":"74 €"}]
[null,"2017-01-15","Maman","Assurance maladie",{"v":70,"d":"70 €"}]
[null,"2017-02-02","Maman","Assurance habitation",{"v":235,"d":"235 €"}]

{"sheet":"13","index":13,"n_rows":3,"n_cols":1,"rows_kept":3}
["Sur la feuille suivante, vous allez ajouter un deuxième champ de ligne. Pour cela, placez le champ Type sous le champ Acheteur dans le champ Lignes."]
["Une image de Liste de champs de tableau croisé dynamique montre un curseur en forme de flèche faisant glisser le champ Type vers la zone Lignes."]
["Pour poursuivre ce didacticiel, appuyez sur CTRL+PAGE SUIVANTE. Pour revenir à la feuille précédente, appuyez sur CTRL+PAGE PRÉCÉDENTE."]

{"sheet":"14","index":14,"n_rows":122,"n_cols":9,"rows_kept":122}
["1. La zone de tableau croisé dynamique pour cet exemple s’étend des cellules B13 à C17. Accédez à l’une de ces cellules. "]
["2. Appuyez sur ALT+JN, L2 pour ouvrir la liste Champs de tableau croisé dynamique. Par défaut, le focus est placé sur la zone de texte Rechercher : « Entrez les mots à rechercher ». N’entrez rien. Contentez-vous d’appuyer une fois sur la touche Tab. REMARQUE : si la Liste des champs ne s’affiche pas, appuyez de nouveau sur ALT+JN, L2."]
["3. Appuyez sur les touches de direction pour accéder au champ Type. Appuyez sur ESPACE pour ajouter le champ Type à la zone Lignes. "]
["4. Appuyez sur la touche ÉCHAP pour quitter le volet Champs de tableau croisé dynamique. "]
["Pour poursuivre ce didacticiel, appuyez sur CTRL+PAGE SUIVANTE. Pour revenir à la feuille précédente, appuyez sur CTRL+PAGE PRÉCÉDENTE.",{"$nulls":7},{"$f":"IF(AND($B$15=\"Billets d’avion\",$C$36=470),\"Parfait. Vous avez ajouté un deuxième \",\" \")","v":" "}]
[{"$nulls":8},{"$f":"IF(AND($B$15=\"Billets d’avion\",$C$36=470),\"champ de ligne au tableau croisé \",\" \")","v":" "}]
[{"$nulls":8},{"$f":"IF(AND($B$15=\"Billets d’avion\",$C$36=470),\"dynamique. Faites défiler vers le bas, \",\" \")","v":" "}]
[{"$nulls":8},{"$f":"IF(AND($B$15=\"Billets d’avion\",$C$36=470),\"puis cliquez sur Suivant…\",\" \")","v":" "}]
[]
[]
[]
[]
[null,"Étiquettes de lignes","Somme des montants"]
[null,"Papa",{"v":2000,"d":"2,000 €"}]
[null,"Marie",{"v":935,"d":"935 €"}]
[null,"Maman",{"v":1427,"d":"1,427 €"}]
[null,"Total général",{"v":4362,"d":"4,362 €"}]
{"$rows_empty":83}
[null,"Date","Acheteur","Type","Montant"]
[null,"2017-01-17","Papa","Sports",{"v":1000,"d":"1,000 €"}]
[null,"2017-01-17","Papa","Billets d’avion",{"v":500,"d":"500 €"}]
[null,"2017-01-17","Papa","Taxes",{"v":500,"d":"500 €"}]
[null,"2017-02-20","Marie","Musique",{"v":20,"d":"20 €"}]
[null,"2017-02-25","Marie","Tickets",{"v":125,"d":"125 €"}]
[null,"2017-01-21","Marie","Livres",{"v":250,"d":"250 €"}]
[null,"2017-02-20","Marie","Restauration",{"v":20,"d":"20 €"}]
[null,"2017-02-25","Marie","Vêtements",{"v":125,"d":"125 €"}]
[null,"2017-01-21","Marie","Leçons de musique",{"v":250,"d":"250 €"}]
[null,"2017-02-20","Marie","Parking",{"v":20,"d":"20 €"}]
[null,"2017-02-25","Marie","Équipements électroniques",{"v":125,"d":"125 €"}]
[null,"2017-01-01","Maman","Carburant",{"v":74,"d":"74 €"}]
[null,"2017-01-15","Maman","Nourriture",{"v":235,"d":"235 €"}]
[null,"2017-01-21","Maman","Cotisations au club",{"v":125,"d":"125 €"}]
[null,"2017-02-02","Maman","Nourriture",{"v":235,"d":"235 €"}]
[null,"2017-01-01","Maman","Frais médicaux",{"v":74,"d":"74 €"}]
[null,"2017-01-15","Maman","Électricité",{"v":70,"d":"70 €"}]
[null,"2017-02-02","Maman","Frais dentaires",{"v":235,"d":"235 €"}]
[null,"2017-01-01","Maman","Assurance automobile",{"v":74,"d":"74 €"}]
[null,"2017-01-15","Maman","Assurance maladie",{"v":70,"d":"70 €"}]
[null,"2017-02-02","Maman","Assurance habitation",{"v":235,"d":"235 €"}]

{"sheet":"15","index":15,"n_rows":121,"n_cols":7,"rows_kept":121}
["Si vous avez besoin de simplifier le tableau croisé dynamique, vous pouvez réduire les données du deuxième champ de ligne afin de les masquer. "]
["Le tableau croisé dynamique pour cet exemple figure dans les cellules F7 à G31. Sélectionnez la cellule F8 pour choisir le premier champ de ligne pour Papa. Ensuite, appuyez sur Alt+JN > V pour développer le deuxième champ, ou sur À pour le réduire."]
["Pour poursuivre ce didacticiel, appuyez sur CTRL+PAGE SUIVANTE. Pour revenir à la feuille précédente, appuyez sur Ctrl+Page précédente."]
[]
[]
[{"$nulls":5},{"$f":"IF(AND($F$9=\"Marie\",$G$9=935),\"Très bien.\",\" \")","v":" "}]
[{"$nulls":5},"Étiquettes de lignes","Somme des montants"]
[{"$nulls":5},"Papa",{"v":2000,"d":"2,000 €"}]
[{"$nulls":5},"Sports",{"v":1000,"d":"1,000 €"}]
[{"$nulls":5},"Taxes",{"v":500,"d":"500 €"}]
[{"$nulls":5},"Billets d’avion",{"v":500,"d":"500 €"}]
[{"$nulls":5},"Marie",{"v":935,"d":"935 €"}]
[{"$nulls":5},"Livres",{"v":250,"d":"250 €"}]
[{"$nulls":5},"Restauration",{"v":20,"d":"20 €"}]
[{"$nulls":5},"Équipements électroniques",{"v":125,"d":"125 €"}]
[{"$nulls":5},"Musique",{"v":20,"d":"20 €"}]
[{"$nulls":5},"Parking",{"v":20,"d":"20 €"}]
[{"$nulls":5},"Tickets",{"v":125,"d":"125 €"}]
[{"$nulls":5},"Vêtements",{"v":125,"d":"125 €"}]
[{"$nulls":5},"Leçons de musique",{"v":250,"d":"250 €"}]
[{"$nulls":5},"Maman",{"v":1427,"d":"1,427 €"}]
[{"$nulls":5},"Assurance automobile",{"v":74,"d":"74 €"}]
[{"$nulls":5},"Frais dentaires",{"v":235,"d":"235 €"}]
[{"$nulls":5},"Électricité",{"v":70,"d":"70 €"}]
[{"$nulls":5},"Nourriture",{"v":470,"d":"470 €"}]
[{"$nulls":5},"Carburant",{"v":74,"d":"74 €"}]
[{"$nulls":5},"Frais médicaux",{"v":74,"d":"74 €"}]
[{"$nulls":5},"Cotisations au club",{"v":125,"d":"125 €"}]
[{"$nulls":5},"Assurance maladie",{"v":70,"d":"70 €"}]
[{"$nulls":5},"Assurance habitation",{"v":235,"d":"235 €"}]
[{"$nulls":5},"Total général",{"v":4362,"d":"4,362 €"}]
{"$rows_empty":68}
[null,"Date","Acheteur","Type","Montant"]
[null,"2017-01-17","Papa","Sports",{"v":1000,"d":"1,000 €"}]
[null,"2017-01-17","Papa","Billets d’avion",{"v":500,"d":"500 €"}]
[null,"2017-01-17","Papa","Taxes",{"v":500,"d":"500 €"}]
[null,"2017-02-20","Marie","Musique",{"v":20,"d":"20 €"}]
[null,"2017-02-25","Marie","Tickets",{"v":125,"d":"125 €"}]
[null,"2017-01-21","Marie","Livres",{"v":250,"d":"250 €"}]
[null,"2017-02-20","Marie","Restauration",{"v":20,"d":"20 €"}]
[null,"2017-02-25","Marie","Vêtements",{"v":125,"d":"125 €"}]
[null,"2017-01-21","Marie","Leçons de musique",{"v":250,"d":"250 €"}]
[null,"2017-02-20","Marie","Parking",{"v":20,"d":"20 €"}]
[null,"2017-02-25","Marie","Équipements électroniques",{"v":125,"d":"125 €"}]
[null,"2017-01-01","Maman","Carburant",{"v":74,"d":"74 €"}]
[null,"2017-01-15","Maman","Nourriture",{"v":235,"d":"235 €"}]
[null,"2017-01-21","Maman","Cotisations au club",{"v":125,"d":"125 €"}]
[null,"2017-02-02","Maman","Nourriture",{"v":235,"d":"235 €"}]
[null,"2017-01-01","Maman","Frais médicaux",{"v":74,"d":"74 €"}]
[null,"2017-01-15","Maman","Électricité",{"v":70,"d":"70 €"}]
[null,"2017-02-02","Maman","Frais dentaires",{"v":235,"d":"235 €"}]
[null,"2017-01-01","Maman","Assurance automobile",{"v":74,"d":"74 €"}]
[null,"2017-01-15","Maman","Assurance maladie",{"v":70,"d":"70 €"}]
[null,"2017-02-02","Maman","Assurance habitation",{"v":235,"d":"235 €"}]

{"sheet":"16","index":16,"n_rows":121,"n_cols":7,"rows_kept":121}
["Vous pouvez également réduire ou développer entièrement le deuxième champ de ligne afin de simplifier encore davantage le tableau croisé dynamique."]
["Voici la clé"]
["Sélectionnez la plage de données du tableau croisé dynamique qui s’étend des cellules F7 à G31, puis tapez ALT+JN > À pour réduire le groupe entier. Inversement, ALT+JN > V développe le groupe."]
["Pour poursuivre ce didacticiel, appuyez sur CTRL+PAGE SUIVANTE. Pour revenir à la feuille précédente, appuyez sur Ctrl+Page précédente."]
[]
[{"$nulls":5},{"$f":"IF(AND($F$9=\"Marie\",$G$9=935),\"Encore à droite.\",\" \")","v":" "}]
[{"$nulls":5},"Étiquettes de lignes","Somme des montants"]
[{"$nulls":5},"Papa",{"v":2000,"d":"2,000 €"}]
[{"$nulls":5},"Sports",{"v":1000,"d":"1,000 €"}]
[{"$nulls":5},"Taxes",{"v":500,"d":"500 €"}]
[{"$nulls":5},"Billets d’avion",{"v":500,"d":"500 €"}]
[{"$nulls":5},"Marie",{"v":935,"d":"935 €"}]
[{"$nulls":5},"Livres",{"v":250,"d":"250 €"}]
[{"$nulls":5},"Restauration",{"v":20,"d":"20 €"}]
[{"$nulls":5},"Équipements électroniques",{"v":125,"d":"125 €"}]
[{"$nulls":5},"Musique",{"v":20,"d":"20 €"}]
[{"$nulls":5},"Parking",{"v":20,"d":"20 €"}]
[{"$nulls":5},"Tickets",{"v":125,"d":"125 €"}]
[{"$nulls":5},"Vêtements",{"v":125,"d":"125 €"}]
[{"$nulls":5},"Leçons de musique",{"v":250,"d":"250 €"}]
[{"$nulls":5},"Maman",{"v":1427,"d":"1,427 €"}]
[{"$nulls":5},"Assurance automobile",{"v":74,"d":"74 €"}]
[{"$nulls":5},"Frais dentaires",{"v":235,"d":"235 €"}]
[{"$nulls":5},"Électricité",{"v":70,"d":"70 €"}]
[{"$nulls":5},"Nourriture",{"v":470,"d":"470 €"}]
[{"$nulls":5},"Carburant",{"v":74,"d":"74 €"}]
[{"$nulls":5},"Frais médicaux",{"v":74,"d":"74 €"}]
[{"$nulls":5},"Cotisations au club",{"v":125,"d":"125 €"}]
[{"$nulls":5},"Assurance maladie",{"v":70,"d":"70 €"}]
[{"$nulls":5},"Assurance habitation",{"v":235,"d":"235 €"}]
[{"$nulls":5},"Total général",{"v":4362,"d":"4,362 €"}]
{"$rows_empty":68}
[null,"Date","Acheteur","Type","Montant"]
[null,"2017-01-17","Papa","Sports",{"v":1000,"d":"1,000 €"}]
[null,"2017-01-17","Papa","Billets d’avion",{"v":500,"d":"500 €"}]
[null,"2017-01-17","Papa","Taxes",{"v":500,"d":"500 €"}]
[null,"2017-02-20","Marie","Musique",{"v":20,"d":"20 €"}]
[null,"2017-02-25","Marie","Tickets",{"v":125,"d":"125 €"}]
[null,"2017-01-21","Marie","Livres",{"v":250,"d":"250 €"}]
[null,"2017-02-20","Marie","Restauration",{"v":20,"d":"20 €"}]
[null,"2017-02-25","Marie","Vêtements",{"v":125,"d":"125 €"}]
[null,"2017-01-21","Marie","Leçons de musique",{"v":250,"d":"250 €"}]
[null,"2017-02-20","Marie","Parking",{"v":20,"d":"20 €"}]
[null,"2017-02-25","Marie","Équipements électroniques",{"v":125,"d":"125 €"}]
[null,"2017-01-01","Maman","Carburant",{"v":74,"d":"74 €"}]
[null,"2017-01-15","Maman","Nourriture",{"v":235,"d":"235 €"}]
[null,"2017-01-21","Maman","Cotisations au club",{"v":125,"d":"125 €"}]
[null,"2017-02-02","Maman","Nourriture",{"v":235,"d":"235 €"}]
[null,"2017-01-01","Maman","Frais médicaux",{"v":74,"d":"74 €"}]
[null,"2017-01-15","Maman","Électricité",{"v":70,"d":"70 €"}]
[null,"2017-02-02","Maman","Frais dentaires",{"v":235,"d":"235 €"}]
[null,"2017-01-01","Maman","Assurance automobile",{"v":74,"d":"74 €"}]
[null,"2017-01-15","Maman","Assurance maladie",{"v":70,"d":"70 €"}]
[null,"2017-02-02","Maman","Assurance habitation",{"v":235,"d":"235 €"}]

{"sheet":"17","index":17,"n_rows":107,"n_cols":13,"rows_kept":107}
["Vous pouvez également avoir plusieurs champs de colonne. Ceux-ci peuvent aussi être réduits ou développés."]
["Le tableau croisé dynamique pour cet exemple s’étend des cellules B13 à M19. Dans ce cas, nous avons une catégorie Type dans la section Colonnes, qui inclut des éléments pour Nourriture et Charges."]
["ESSAYEZ DE PROCÉDER COMME SUIT\nSélectionnez Nourriture dans la cellule C14, puis tapez ALT+JN > À pour réduire le champ entier. ALT+JN > V permet de le développer."]
["Pour poursuivre ce didacticiel, appuyez sur CTRL+PAGE SUIVANTE. Pour revenir à la feuille précédente, appuyez sur CTRL+PAGE PRÉCÉDENTE."]
{"$rows_empty":7}
[null,null,{"$f":"IF(AND($C$16=398,$D$15=\"Jan\"),\"Excellent travail.\",\" \")","v":" "}]
[null,"Somme des montants","Étiquettes de colonnes"]
[null,null,"Nourriture",{"$nulls":3},"Total Nourriture","Charges",{"$nulls":3},"Total Charges","Total général"]
[null,"Étiquettes de lignes","Jan","Fév","Mar","Avr",null,"Jan","Fév","Mar","Avr"]
[null,"Marie",{"v":74,"d":"74 €"},{"v":74,"d":"74 €"},{"v":125,"d":"125 €"},{"v":125,"d":"125 €"},{"v":398,"d":"398 €"},{"$nulls":5},{"v":398,"d":"398 €"}]
[null,"Papa",{"v":235,"d":"235 €"},{"v":235,"d":"235 €"},{"v":235,"d":"235 €"},{"v":74,"d":"74 €"},{"v":779,"d":"779 €"},{"$nulls":5},{"v":779,"d":"779 €"}]
[null,"Maman",{"$nulls":5},{"v":1000,"d":"1,000 €"},{"v":1000,"d":"1,000 €"},{"v":20,"d":"20 €"},{"v":70,"d":"70 €"},{"v":2090,"d":"2,090 €"},{"v":2090,"d":"2,090 €"}]
[null,"Total général",{"v":309,"d":"309 €"},{"v":309,"d":"309 €"},{"v":360,"d":"360 €"},{"v":199,"d":"199 €"},{"v":1177,"d":"1,177 €"},{"v":1000,"d":"1,000 €"},{"v":1000,"d":"1,000 €"},{"v":20,"d":"20 €"},{"v":70,"d":"70 €"},{"v":2090,"d":"2,090 €"},{"v":3267,"d":"3,267 €"}]
{"$rows_empty":75}
[null,"Mois","Acheteur","Type","Montant"]
[null,"Jan","Marie","Nourriture",{"v":74,"d":"74 €"}]
[null,"Jan","Papa","Nourriture",{"v":235,"d":"235 €"}]
[null,"Jan","Maman","Charges",{"v":1000,"d":"1,000 €"}]
[null,"Fév","Marie","Nourriture",{"v":74,"d":"74 €"}]
[null,"Fév","Papa","Nourriture",{"v":235,"d":"235 €"}]
[null,"Fév","Maman","Charges",{"v":1000,"d":"1,000 €"}]
[null,"Mar","Marie","Nourriture",{"v":125,"d":"125 €"}]
[null,"Mar","Papa","Nourriture",{"v":235,"d":"235 €"}]
[null,"Mar","Maman","Charges",{"v":20,"d":"20 €"}]
[null,"Avr","Marie","Nourriture",{"v":125,"d":"125 €"}]
[null,"Avr","Papa","Nourriture",{"v":74,"d":"74 €"}]
[null,"Avr","Maman","Charges",{"v":70,"d":"70 €"}]

{"sheet":"18","index":18,"n_rows":146,"n_cols":5,"rows_kept":146}
["Retenez ceci : Si vous avez besoin de plus de détails, vous pouvez ajouter un grand nombre de champs de ligne ou de colonnes. Dans cet exemple, il y a trois champs de ligne."]
["Le tableau croisé dynamique pour cet exemple s’étend des cellules D8 à E29 et comprend les champs Saison, Acheteur et Type dans la colonne D, ainsi que la Somme des montants dans la colonne E."]
["CONSEIL D’EXPERT\nLe fait que vous pouvez puissiez ajouter un grand nombre de champs, ne signifie que vous le devriez. Dans cet exemple, cela fonctionne bien. Mais parfois un trop grand nombre de champs, avec tous leurs retraits, peut rendre le tableau croisé dynamique trop compliqué à comprendre pour d’autres personnes. "]
["Pour poursuivre ce didacticiel, appuyez sur CTRL+PAGE SUIVANTE. Pour revenir à la feuille précédente, appuyez sur CTRL+PAGE PRÉCÉDENTE."]
[]
[]
[]
[{"$nulls":3},"Étiquettes de lignes","Somme des montants"]
[{"$nulls":3},"Automne",{"v":5425,"d":"5,425 €"}]
[{"$nulls":3},"Maman",{"v":5425,"d":"5,425 €"}]
[{"$nulls":3},"Assurance",{"v":1272,"d":"1,272 €"}]
[{"$nulls":3},"Loyer",{"v":3220,"d":"3,220 €"}]
[{"$nulls":3},"Charges",{"v":933,"d":"933 €"}]
[{"$nulls":3},"Printemps",{"v":4760,"d":"4,760 €"}]
[{"$nulls":3},"Papa",{"v":4760,"d":"4,760 €"}]
[{"$nulls":3},"Assurance",{"v":1040,"d":"1,040 €"}]
[{"$nulls":3},"Loyer",{"v":2400,"d":"2,400 €"}]
[{"$nulls":3},"Charges",{"v":1320,"d":"1,320 €"}]
[{"$nulls":3},"Été",{"v":3473,"d":"3,473 €"}]
[{"$nulls":3},"Maman",{"v":3473,"d":"3,473 €"}]
[{"$nulls":3},"Assurance",{"v":1080,"d":"1,080 €"}]
[{"$nulls":3},"Loyer",{"v":1260,"d":"1,260 €"}]
[{"$nulls":3},"Charges",{"v":1133,"d":"1,133 €"}]
[{"$nulls":3},"Hiver",{"v":4100,"d":"4,100 €"}]
[{"$nulls":3},"Papa",{"v":4100,"d":"4,100 €"}]
[{"$nulls":3},"Assurance",{"v":1030,"d":"1,030 €"}]
[{"$nulls":3},"Loyer",{"v":1420,"d":"1,420 €"}]
[{"$nulls":3},"Charges",{"v":1650,"d":"1,650 €"}]
[{"$nulls":3},"Total général",{"v":17758,"d":"17,758 €"}]
{"$rows_empty":68}
[null,"Acheteur","Saison","Type","Montant"]
[null,"Papa","Hiver","Assurance",{"v":300,"d":"300 €"}]
[null,"Papa","Hiver","Loyer",{"v":200,"d":"200 €"}]
[null,"Papa","Hiver","Charges",{"v":400,"d":"400 €"}]
[null,"Papa","Hiver","Assurance",{"v":300,"d":"300 €"}]
[null,"Papa","Hiver","Loyer",{"v":800,"d":"800 €"}]
[null,"Papa","Hiver","Charges",{"v":400,"d":"400 €"}]
[null,"Papa","Hiver","Assurance",{"v":200,"d":"200 €"}]
[null,"Papa","Hiver","Loyer",{"v":300,"d":"300 €"}]
[null,"Papa","Hiver","Charges",{"v":450,"d":"450 €"}]
[null,"Papa","Hiver","Assurance",{"v":230,"d":"230 €"}]
[null,"Papa","Hiver","Loyer",{"v":120,"d":"120 €"}]
[null,"Papa","Hiver","Charges",{"v":400,"d":"400 €"}]
[null,"Papa","Printemps","Assurance",{"v":210,"d":"210 €"}]
[null,"Papa","Printemps","Loyer",{"v":300,"d":"300 €"}]
[null,"Papa","Printemps","Charges",{"v":400,"d":"400 €"}]
[null,"Papa","Printemps","Assurance",{"v":230,"d":"230 €"}]
[null,"Papa","Printemps","Loyer",{"v":900,"d":"900 €"}]
[null,"Papa","Printemps","Charges",{"v":300,"d":"300 €"}]
[null,"Papa","Printemps","Assurance",{"v":200,"d":"200 €"}]
[null,"Papa","Printemps","Loyer",{"v":1000,"d":"1,000 €"}]
[null,"Papa","Printemps","Charges",{"v":220,"d":"220 €"}]
[null,"Papa","Printemps","Assurance",{"v":400,"d":"400 €"}]
[null,"Papa","Printemps","Loyer",{"v":200,"d":"200 €"}]
[null,"Papa","Printemps","Charges",{"v":400,"d":"400 €"}]
[null,"Maman","Été","Assurance",{"v":100,"d":"100 €"}]
[null,"Maman","Été","Loyer",{"v":30,"d":"30 €"}]
[null,"Maman","Été","Charges",{"v":123,"d":"123 €"}]
[null,"Maman","Été","Assurance",{"v":300,"d":"300 €"}]
[null,"Maman","Été","Loyer",{"v":350,"d":"350 €"}]
[null,"Maman","Été","Charges",{"v":230,"d":"230 €"}]
[null,"Maman","Été","Assurance",{"v":120,"d":"120 €"}]
[null,"Maman","Été","Loyer",{"v":640,"d":"640 €"}]
[null,"Maman","Été","Charges",{"v":530,"d":"530 €"}]
[null,"Maman","Été","Assurance",{"v":560,"d":"560 €"}]
[null,"Maman","Été","Loyer",{"v":240,"d":"240 €"}]
[null,"Maman","Été","Charges",{"v":250,"d":"250 €"}]
[null,"Maman","Automne","Assurance",{"v":62,"d":"62 €"}]
[null,"Maman","Automne","Loyer",{"v":600,"d":"600 €"}]
[null,"Maman","Automne","Charges",{"v":340,"d":"340 €"}]
[null,"Maman","Automne","Assurance",{"v":205,"d":"205 €"}]
[null,"Maman","Automne","Loyer",{"v":500,"d":"500 €"}]
[null,"Maman","Automne","Charges",{"v":403,"d":"403 €"}]
[null,"Maman","Automne","Assurance",{"v":503,"d":"503 €"}]
[null,"Maman","Automne","Loyer",{"v":2000,"d":"2,000 €"}]
[null,"Maman","Automne","Charges",{"v":140,"d":"140 €"}]
[null,"Maman","Automne","Assurance",{"v":502,"d":"502 €"}]
[null,"Maman","Automne","Loyer",{"v":120,"d":"120 €"}]
[null,"Maman","Automne","Charges",{"v":50,"d":"50 €"}]

{"sheet":"19","index":19,"n_rows":55,"n_cols":5,"rows_kept":55}
["Prêt pour plus d’exercice pratique ? Examinez les données ci-dessous dans les cellules B7 à E55. Lorsque vous êtes prêt, passez à la feuille suivant pour pratiquer ce que vous avez appris jusqu’à présent. "]
["Il est inutile de lire toutes les lignes de données. Regardez simplement les noms de champs dans la ligne 7. Vous allez travailler avec ceux-ci sur la feuille suivante. "]
["Pour poursuivre ce didacticiel, appuyez sur CTRL+PAGE SUIVANTE. Pour revenir à la feuille précédente, appuyez sur CTRL+PAGE PRÉCÉDENTE."]
[]
[]
[]
[null,"Saison","Rep. commercial","Produit","Unités vendues"]
[null,"Hiver","Élise","Oranges",300]
[null,"Hiver","Georges","Pamplemousses",200]
[null,"Hiver","David","Pommes",400]
[null,"Hiver","Élise","Bananes",300]
[null,"Hiver","Georges","Oranges",800]
[null,"Hiver","David","Pamplemousses",400]
[null,"Hiver","Élise","Pommes",200]
[null,"Hiver","Georges","Bananes",300]
[null,"Hiver","David","Oranges",450]
[null,"Hiver","Élise","Pamplemousses",230]
[null,"Hiver","Georges","Pommes",120]
[null,"Hiver","David","Bananes",400]
[null,"Printemps","Élise","Betteraves",210]
[null,"Printemps","Georges","Pommes de terre",300]
[null,"Printemps","David","Laitue",400]
[null,"Printemps","Élise","Radis",230]
[null,"Printemps","Georges","Betteraves",900]
[null,"Printemps","David","Pommes de terre",300]
[null,"Printemps","Élise","Laitue",200]
[null,"Printemps","Georges","Radis",1000]
[null,"Printemps","David","Betteraves",220]
[null,"Printemps","Élise","Pommes de terre",400]
[null,"Printemps","Georges","Laitue",200]
[null,"Printemps","David","Radis",400]
[null,"Été","Élise","Myrtilles",100]
[null,"Été","Georges","Fraises",30]
[null,"Été","David","Raisins",123]
[null,"Été","Élise","Citrouille",300]
[null,"Été","Georges","Myrtilles",350]
[null,"Été","David","Fraises",230]
[null,"Été","Élise","Raisins",120]
[null,"Été","Georges","Citrouille",640]
[null,"Été","David","Myrtilles",530]
[null,"Été","Élise","Fraises",560]
[null,"Été","Georges","Raisins",240]
[null,"Été","David","Citrouille",250]
[null,"Automne","Élise","Courge",62]
[null,"Automne","Georges","Courgettes",600]
[null,"Automne","David","Pommes",340]
[null,"Automne","Élise","Oranges",205]
[null,"Automne","Georges","Courge",500]
[null,"Automne","David","Courgettes",403]
[null,"Automne","Élise","Pommes",503]
[null,"Automne","Georges","Oranges",2000]
[null,"Automne","David","Courge",140]
[null,"Automne","Élise","Courgettes",502]
[null,"Automne","Georges","Pommes",120]
[null,"Automne","David","Oranges",50]

{"sheet":"20","index":20,"n_rows":17,"n_cols":11,"rows_kept":17}
["1. La zone de tableau croisé dynamique pour cet exemple s’étend des cellules B12 à C17. Accédez à l’une de ces cellules. \n\n"]
["2. Appuyez sur ALT+JN, L2 pour ouvrir la liste Champs de tableau croisé dynamique. Par défaut, le focus est placé sur la zone de texte Rechercher : « Entrez les mots à rechercher ». N’entrez rien. Contentez-vous d’appuyer une fois sur la touche Tab. REMARQUE : si la Liste des champs ne s’affiche pas, appuyez de nouveau sur ALT+JN, L2."]
["3. Appuyez sur les touches de direction pour accéder au champ Rep. commercial. Appuyez sur ESPACE pour ajouter le champ Rep. commercial à la zone Lignes. Si vous voulez afficher les détails de Rep. commercial dans la zone Colonnes, utilisez la touche Tab pour atteindre le champ Rep. commercial dans la section Ligne, appuyez sur ESPACE, puis sélectionnez « Déplacer dans la zone Étiquettes de colonnes ». Appuyez sur la touche ÉCHAP pour quitter le volet Champs de tableau croisé dynamique. "]
["4. Déterminez qui a vendu le plus d’articles durant l’automne, puis opérez une sélection dans la cellule K8. "]
["Pour poursuivre ce didacticiel, appuyez sur CTRL+PAGE SUIVANTE. Pour revenir à la feuille précédente, appuyez sur CTRL+PAGE PRÉCÉDENTE."]
[]
[{"$nulls":10},"Sélectionnez-en une :"]
[]
[{"$nulls":10},{"$f":"IF($K$8=\"Georges\",\"Vous avez raison.\",IF($K$8=\"David\",\"Réessayez...\",IF($K$8=\"Élise\",\"Pas tout à fait...\",IF($K$8=\" \",\" \",\" \"))))","v":" "}]
[]
[]
[null,"Étiquettes de lignes","Somme de Unités vendues"]
[null,"Automne",5425]
[null,"Été",3473]
[null,"Hiver",4100]
[null,"Printemps",4760]
[null,"Total général",17758]

{"sheet":"21","index":21,"n_rows":14,"n_cols":10,"rows_kept":14}
["1. Cliquez sur la cellule B13 pour activer le tableau croisé dynamique nommé « Somme d’unités vendues ».\n\n"]
["2. Appuyez sur ALT+JN, L2 pour ouvrir la liste Champs de tableau croisé dynamique. Par défaut, le focus est placé sur la zone de texte Rechercher : « Entrez les mots à rechercher ». N’entrez rien. Contentez-vous d’appuyer une fois sur la touche Tab. REMARQUE : si la Liste des champs ne s’affiche pas, appuyez de nouveau sur ALT+JN, L2."]
["3. Utilisez les touches de direction et la touche ESPACE pour développer l’exemple dans un tableau croisé dynamique vertical contenant les saisons sur la gauche, avec les représentants commerciaux en retrait sous les saisons. Appuyez sur ÉCHAP pour quitter le volet Champs de tableau croisé dynamique. "]
["Pour poursuivre ce didacticiel, appuyez sur CTRL+PAGE SUIVANTE. Pour revenir à la feuille précédente, appuyez sur CTRL+PAGE PRÉCÉDENTE."]
[{"$nulls":9},{"$f":"IF(AND(B$14=\"Automne\",$C$17=3220),\"Bravo. Vous avez placé un champ de ligne \",\" \")","v":" "}]
[{"$nulls":9},{"$f":"IF(AND(B$14=\"Automne\",$C$17=3220),\"secondaire. Maintenant, faites défiler vers \",\" \")","v":" "}]
[{"$nulls":9},{"$f":"IF(AND(B$14=\"Automne\",$C$17=3220),\"le bas, puis cliquez sur Suivant.\",\" \")","v":" "}]
[]
[]
[]
[]
[]
[null,"Somme d’unités vendues"]
[null,{"v":17758,"d":"17,758"}]

{"sheet":"22","index":22,"n_rows":14,"n_cols":10,"rows_kept":14}
["1. Cliquez sur la cellule B13 pour activer le tableau croisé dynamique nommé « Somme d’unités vendues »."]
["2. Appuyez sur ALT+JN, L2 pour ouvrir la liste Champs de tableau croisé dynamique. Par défaut, le focus est placé sur la zone de texte Rechercher : « Entrez les mots à rechercher ». N’entrez rien. Contentez-vous d’appuyer une fois sur la touche Tab. REMARQUE : si la Liste des champs ne s’affiche pas, appuyez de nouveau sur ALT+JN, L2."]
["3. Utilisez les touches de direction et la touche ESPACE pour modifier l’exemple de façon à ce qu’il affiche chaque produit sur sa propre ligne, et chaque saison dans sa propre colonne."]
["Pour poursuivre ce didacticiel, appuyez sur CTRL+PAGE SUIVANTE. Pour revenir à la feuille précédente, appuyez sur CTRL+PAGE PRÉCÉDENTE.",{"$nulls":8},{"$f":"IF(AND($B$15=\"Bananes\",$G$28=483),\"Bravo. Vous avez placé un champ de \",\" \")","v":" "}]
[{"$nulls":9},{"$f":"IF(AND($B$15=\"Bananes\",$G$28=483),\"ligne sur la gauche, et un champ de \",\" \")","v":" "}]
[{"$nulls":9},{"$f":"IF(AND($B$15=\"Bananes\",$G$28=483),\"colonne contenant quatre nouvelles \",\" \")","v":" "}]
[{"$nulls":9},{"$f":"IF(AND($B$15=\"Bananes\",$G$28=483),\"colonnes. Faites défiler vers le bas, \",\" \")","v":" "}]
[{"$nulls":9},{"$f":"IF(AND($B$15=\"Bananes\",$G$28=483),\"puis cliquez sur Suivant...\",\" \")","v":" "}]
[]
[]
[]
[]
[null,"Somme d’unités vendues"]
[null,{"v":17758,"d":"17,758"}]

{"sheet":"23","index":23,"n_rows":16,"n_cols":18,"rows_kept":16}
["1. Cliquez sur la cellule B13 pour activer le tableau croisé dynamique nommé « Somme d’unités vendues ».\n\n"]
["2. Appuyez sur ALT+JN, L2 pour ouvrir la liste Champs de tableau croisé dynamique. Par défaut, le focus est placé sur la zone de texte Rechercher : « Entrez les mots à rechercher ». N’entrez rien. Contentez-vous d’appuyer une fois sur la touche Tab. REMARQUE : si la Liste des champs ne s’affiche pas, appuyez de nouveau sur ALT+JN, L2."]
["3. Utilisez les touches de direction, Tab et ESPACE pour modifier l’exemple de façon à ce qu’il affiche Rep. commercial sur la gauche, avec les saisons en retrait sous Rep. commercial."]
["Pour poursuivre ce didacticiel, appuyez sur CTRL+PAGE SUIVANTE. Pour revenir à la feuille précédente, appuyez sur CTRL+PAGE PRÉCÉDENTE."]
[{"$nulls":9},{"$f":"IF(AND($B$14=\"David\",$C$14=5036),\"Bravo. Les données sont désormais \",\" \")","v":" "}]
[{"$nulls":9},{"$f":"IF(AND($B$14=\"David\",$C$14=5036),\"plus lisibles. Faites défiler vers le bas, \",\" \")","v":" "}]
[{"$nulls":9},{"$f":"IF(AND($B$14=\"David\",$C$14=5036),\"puis cliquez sur Suivant...\",\" \")","v":" "}]
[]
[]
[]
[]
[]
[null,null,"Étiquettes de colonnes"]
[null,null,"David",{"$nulls":3},"Total David","Georges",{"$nulls":3},"Total Georges","Élise",{"$nulls":3},"Total Élise","Total général"]
[null,null,"Automne","Printemps","Été","Hiver",null,"Automne","Printemps","Été","Hiver",null,"Automne","Printemps","Été","Hiver"]
[null,"Somme d’unités vendues",933,{"v":1320,"d":"1,320"},{"v":1133,"d":"1,133"},{"v":1650,"d":"1,650"},{"v":5036,"d":"5,036"},{"v":3220,"d":"3,220"},{"v":2400,"d":"2,400"},{"v":1260,"d":"1,260"},{"v":1420,"d":"1,420"},{"v":8300,"d":"8,300"},{"v":1272,"d":"1,272"},{"v":1040,"d":"1,040"},{"v":1080,"d":"1,080"},{"v":1030,"d":"1,030"},{"v":4422,"d":"4,422"},{"v":17758,"d":"17,758"}]

{"sheet":"24","index":24,"n_rows":14,"n_cols":9,"rows_kept":14}
["1. Cliquez sur la cellule B13 pour activer le tableau croisé dynamique nommé « Somme d’unités vendues »."]
["2. Appuyez sur ALT+JN, L2 pour ouvrir la liste Champs de tableau croisé dynamique. Par défaut, le focus est placé sur la zone de texte Rechercher : « Entrez les mots à rechercher ». N’entrez rien. Contentez-vous d’appuyer une fois sur la touche Tab. REMARQUE : si la Liste des champs ne s’affiche pas, appuyez de nouveau sur ALT+JN, L2."]
["3. Utilisez les touches de direction, Tab et ESPACE pour modifier l’exemple de façon à ce que chaque Rep. commercial ait ses propres champs de colonne, avec Saisons sur la gauche, et Produits en retrait sous Saisons."]
["4. Sélectionnez la cellule I9, puis choisissez le nombre de pamplemousses que David a vendu durant l’hiver."]
["Pour poursuivre ce didacticiel, appuyez sur CTRL+PAGE SUIVANTE. Pour revenir à la feuille précédente, appuyez sur CTRL+PAGE PRÉCÉDENTE."]
[]
[]
[{"$nulls":8},"Sélectionnez-en une :"]
[]
[{"$nulls":8},{"$f":"IF($I$9=400,\"Vous avez raison.\",IF($I$9=530,\"Réessayez...\",IF($I$9=123,\"Pas tout à fait...\",\" \")))","v":" "}]
[]
[]
[null,"Somme d’unités vendues"]
[null,{"v":17758,"d":"17,758"}]

{"sheet":"En savoir plus","index":25,"n_rows":8,"n_cols":1,"rows_kept":8}
["Bravo. Les tableaux croisés dynamiques ne sont-ils pas épatants ?"]
["Mais nous vous encourageons à poursuivre vos lectures. Il y a plus à découvrir..."]
["Informations supplémentaires sur les tableaux croisés dynamiques\nPour en savoir plus, lisez cet excellent article consacré aux tableaux croisés dynamiques."]
["À propos de l’actualisation\nLisez cet article important sur l’actualisation des tableaux croisés dynamiques. "]
["LinkedIn Learning\nVidéos de formation pour tous les niveaux, de débutant à confirmé. Apprenez à votre rythme."]
["Communauté\nCommuniquez avec d’autres adeptes d’Excel. Vous pouvez vous aider mutuellement."]
[]
[" "]